bitfinex-derivatives/quotes_ETHF0:USTF0_20250520
["timestamp","ask_amount","ask_price","bid_price","bid_amount"]
[1747732967241,0.00388799,2532.2,2532.0,14.079045]
[1747732967744,0.00388799,2532.2,2532.0,6.025045]
[1747732968239,0.00388799,2532.2,2532.1,8.053]
[1747732968631,0.00388799,2532.2,2532.1,10.027605]
[1747732970040,3.2078,2533.1,2532.1,8.053]
[1747732970241,5.182055,2533.1,2532.3,3.2078]
[1747732971144,7.922055,2533.1,2532.3,3.2078]
[1747732971644,7.922055,2533.1,2532.6,3.2078]
[1747732971843,7.922015,2533.1,2532.6,11.2558]
[1747732972243,5.182015,2533.1,2532.6,11.2558]
[1747732972744,5.182015,2533.1,2532.6,3.2078]
[1747732973149,2.6653,2533.0,2532.6,8.048]
[1747732973445,2.6653,2533.0,2532.5,8.048]
[1747732973646,4.639515,2533.0,2532.5,8.048]
[1747732974146,12.379515,2533.0,2532.4,8.048]
[1747732974340,7.379515,2533.0,2532.4,8.048]
[1747732974539,12.379515,2533.0,2532.4,8.048]
[1747732975034,40.8,2532.9,2532.4,8.048]
[1747732975349,1.3286,2532.8,2532.4,8.048]
[1747732975846,3.302855,2532.8,2532.4,8.048]
[1747732976345,6.042855,2532.8,2532.4,8.048]
[1747732976645,6.042855,2532.8,2532.3,3.2078]
[1747732977242,3.302855,2532.8,2532.4,1.351]
[1747732978544,3.302855,2532.8,2532.4,9.398]
[1747732979155,3.302855,2532.8,2532.4,1.351]
[1747732979358,3.302855,2532.8,2532.3,3.2078]
[1747732980255,3.302855,2532.8,2532.3,4.5227]
[1747732981440,3.2078,2532.7,2532.1,3.2078]
[1747732981746,3.302855,2532.8,2531.9,9.63089696]
[1747732981747,3.2078,2532.4,2531.9,9.63089696]
[1747732982046,2.646,2532.3,2531.9,9.63089696]
[1747732982252,2.646,2532.3,2531.9,8.31599696]
[1747732982549,4.620645,2532.3,2531.9,8.047]
[1747732983147,7.360645,2532.3,2531.9,8.047]
[1747732983646,7.360645,2532.3,2531.8,3.21373272]
[1747732984647,40.8,2532.2,2531.8,3.21373272]
[1747732984852,1.2559,2532.1,2531.8,3.21373272]
[1747732985250,5.970665,2532.1,2531.8,3.21373272]
[1747732986246,3.230665,2532.1,2531.8,3.21373272]
[1747732987150,5.970665,2532.1,2531.8,3.21373272]
[1747732987552,9.178465,2532.1,2531.8,0.00593272]
[1747732987756,14.178465,2532.1,2531.8,0.00593272]
[1747732988459,22.226465,2532.1,2531.8,0.00593272]
[1747732989155,23.80139457,2532.1,2531.8,0.00593272]
[1747732989362,10.75339457,2532.1,2531.9,0.08486477]
[1747732989757,10.75339457,2532.1,2532.0,1.3421]
[1747732989954,10.75339457,2532.1,2531.9,0.08486477]
[1747732990157,8.01339457,2532.1,2531.9,0.08486477]
[1747732990359,8.01339457,2532.1,2531.8,0.00593272]
[1747732990756,6.438465,2532.1,2531.8,0.00593272]
[1747732991457,11.438465,2532.1,2531.8,0.00593272]
[1747732992164,14.178465,2532.1,2531.8,0.00593272]
[1747732992358,16.152565,2532.1,2531.8,0.00593272]
[1747732992562,0.78984,2531.4,2531.3,1.3421]
[1747732992951,2.76507001,2531.4,2531.3,1.3421]
[1747732997457,0.78984,2531.4,2531.3,2.13197]
[1747732998061,0.78984,2531.4,2531.3,1.3421]
[1747733000963,0.78987,2531.3,2531.2,4.5495]
[1747733001265,0.78987,2531.3,2531.2,3.2078]
[1747733001572,2.76518,2531.3,2531.2,4.5357]
[1747733001761,0.78987,2531.3,2531.2,4.5357]
[1747733001961,2.76518,2531.3,2531.2,4.5357]
[1747733002160,4.13878,2531.3,2531.2,4.5357]
[1747733003172,6.87878,2531.3,2531.2,4.5357]
[1747733003374,0.7899,2531.2,2531.1,0.00593272]
[1747733003574,2.056,2531.2,2531.1,0.00593272]
[1747733003769,4.031385,2531.2,2531.1,1.28403272]
[1747733003970,4.031385,2531.2,2531.1,0.00593272]
[1747733004979,4.692285,2531.2,2531.1,0.00593272]
[1747733005277,8.00542785,2531.2,2531.1,0.00593272]
[1747733005974,13.00542785,2531.2,2531.1,0.00593272]
[1747733006679,0.78996,2531.0,2530.9,3.2078]
[1747733007079,5.505505,2531.0,2530.9,3.2078]
[1747733008178,6.759905,2531.0,2530.9,3.2078]
[1747733008684,5.505505,2531.0,2530.9,3.2078]
[1747733009171,2.765505,2531.0,2530.9,3.2078]
[1747733011270,0.78996,2531.0,2530.9,3.2078]
[1747733013778,0.78996,2531.0,2530.9,3.99779]
[1747733013982,0.78996,2531.0,2530.9,5.18334499]
[1747733014186,0.78996,2531.0,2530.9,6.56384499]
[1747733014685,1.97469,2531.3,2530.9,7.35381499]
[1747733014880,0.78996,2531.0,2530.9,4.5883]
[1747733015485,0.78996,2531.0,2530.9,6.56384499]
[1747733019080,0.78996,2531.0,2530.9,14.59384499]
[1747733020085,0.78996,2531.0,2530.9,15.38383499]
[1747733020384,0.78996,2531.0,2530.9,14.59384499]
[1747733024291,0.78996,2531.0,2530.9,15.38383499]
[1747733025201,0.78996,2531.0,2530.9,15.38382499]
[1747733025898,0.78996,2531.0,2530.9,15.46868976]
[1747733026799,0.78996,2531.0,2530.9,15.38382499]
[1747733027907,0.65888462,2531.2,2531.1,0.78993]
[1747733028100,1.44878462,2531.2,2531.1,0.78993]
[1747733028303,1.44878462,2531.2,2531.1,2.765315]
[1747733028607,0.65888462,2531.2,2531.1,2.765315]
[1747733028799,1.44878462,2531.2,2531.1,2.765315]
[1747733029402,0.65888462,2531.2,2531.1,2.765315]
[1747733029599,1.44878462,2531.2,2531.1,3.272485]
[1747733029802,1.44878462,2531.2,2531.1,3.54148196]
[1747733030001,1.44878462,2531.2,2531.1,4.33141196]
[1747733030506,1.44878462,2531.2,2531.1,0.26899696]
[1747733030507,3.42416962,2531.2,2531.1,0.26899696]
[1747733030699,2.765285,2531.2,2531.1,0.26899696]
[1747733031102,0.78993,2531.1,2531.0,1.2492]
[1747733032003,2.76539501,2531.1,2531.0,1.2492]
[1747733033707,3.74923281,2531.1,2531.0,1.2492]
[1747733036205,0.78996,2531.0,2530.9,3.2078]
[1747733036604,2.10596,2531.0,2530.9,3.2078]
[1747733037110,4.081505,2531.0,2530.9,3.2078]
[1747733038299,4.081505,2531.0,2530.9,4.4681]
[1747733039416,4.081505,2531.0,2530.9,5.25809]
[1747733039707,5.0653428,2531.0,2530.9,5.25809]
[1747733039904,3.0897978,2531.0,2530.9,5.25809]
[1747733040105,3.7493428,2531.0,2530.9,5.25809]
[1747733040414,1.7737978,2531.0,2530.9,5.25809]
[1747733041916,1.7737978,2531.0,2530.9,7.23363499]
[1747733042713,0.9838378,2531.0,2530.9,7.23363499]
[1747733042907,0.9838378,2531.0,2530.9,12.23363499]
[1747733043115,0.9838378,2531.0,2530.9,14.97363499]
[1747733044116,0.9838378,2531.0,2530.9,15.05849976]
[1747733044813,1.31055159,2531.3,2531.2,0.7899]
[1747733045012,1.31055159,2531.3,2531.2,11.9137]
[1747733045208,0.78981,2531.5,2531.4,0.78984]
[1747733045718,0.78981,2531.5,2531.4,2.764995]
[1747733046025,0.78981,2531.5,2531.4,4.053495]
[1747733046321,0.78981,2531.5,2531.4,6.003655]
[1747733046615,0.78981,2531.5,2531.4,6.793495]
[1747733046815,0.79573272,2531.6,2531.5,0.78981]
[1747733047016,0.79573272,2531.6,2531.5,5.28611]
[1747733047216,0.79573272,2531.6,2531.5,7.261185]
[1747733047408,0.79573272,2531.6,2531.5,4.4963]
[1747733047614,2.77080772,2531.6,2531.5,1.2885]
[1747733047917,0.78984,2531.4,2531.3,0.26550771]
[1747733048213,3.52984,2531.4,2531.3,0.26550771]
[1747733048410,10.50507001,2531.4,2531.3,0.26550771]
[1747733048717,11.87687001,2531.4,2531.3,0.26550771]
[1747733048915,6.87687001,2531.4,2531.3,0.26550771]
[1747733049110,0.78996,2531.0,2530.9,3.2078]
[1747733049512,2.765505,2531.0,2530.9,3.2078]
[1747733051510,1.3466,2531.2,2530.9,3.2078]
[1747733051709,2.88691542,2531.3,2531.0,7.915]
[1747733051909,2.88691542,2531.3,2531.2,0.7899]
[1747733052118,2.88691542,2531.3,2531.2,3.9977]
[1747733052318,2.88691542,2531.3,2531.2,5.97301]
[1747733053121,1.31055159,2531.3,2531.2,5.97301]
[1747733053619,0.65938947,2531.4,2531.3,0.78987]
[1747733053816,1.44922947,2531.4,2531.3,2.75637]
[1747733054013,3.42445948,2531.4,2531.3,1.3397]
[1747733056118,2.76507001,2531.4,2531.3,1.3397]
[1747733058323,5.50507001,2531.4,2531.3,1.3397]
[1747733059120,2.76507001,2531.4,2531.3,1.3397]
[1747733060020,0.78986,2531.3,2531.2,3.2078]
[1747733060222,4.12847,2531.3,2531.2,3.2078]
[1747733061225,2.76517,2531.3,2531.2,3.9977]
[1747733061424,0.78986,2531.3,2531.2,5.97301]
[1747733061719,0.78986,2531.3,2531.2,5.18311]
[1747733062614,0.78986,2531.3,2531.2,5.97301]
[1747733062916,0.78986,2531.3,2531.2,5.18311]
[1747733063323,0.78986,2531.3,2531.2,3.2078]
[1747733063518,2.76517,2531.3,2531.2,3.2078]
[1747733068224,0.78996,2531.0,2530.9,8.17150771]
[1747733068625,2.765505,2531.0,2530.9,0.26550771]
[1747733070226,0.78999,2530.9,2530.8,3.2078]
[1747733070427,2.09229,2530.9,2530.8,3.2078]
[1747733070629,4.06791,2530.9,2530.8,3.2078]
[1747733070926,0.79002,2530.8,2530.7,0.00593272]
[1747733071134,4.83232,2530.8,2530.7,0.00593272]
[1747733071330,6.80802001,2530.8,2530.7,0.00593272]
[1747733071725,6.80802001,2530.8,2530.4,0.53811287]
[1747733071726,11.01800001,2530.8,2530.4,0.53811287]
[1747733071923,0.79018,2530.3,2530.2,0.26216537]
[1747733072223,0.79027,2530.0,2529.9,2.87e-06]
[1747733072624,2.766595,2530.0,2529.9,2.87e-06]
[1747733073532,0.7903,2529.9,2529.8,3.2078]
[1747733073827,2.1611,2529.9,2529.8,3.2078]
[1747733074026,4.1375,2529.9,2529.8,3.2078]
[1747733075128,1.9764,2529.9,2529.8,3.2078]
[1747733075334,0.00593272,2530.2,2529.8,6.5519]
[1747733075536,0.79616272,2530.2,2530.1,3.2078]
[1747733075730,0.79616272,2530.2,2530.1,5.2043]
[1747733076529,1.98209772,2530.2,2529.8,3.2078]
[1747733076734,0.7903,2529.9,2529.8,12.4091]
[1747733077134,0.7903,2529.9,2529.8,14.3855]
[1747733077934,0.7903,2529.9,2529.8,15.17584]
[1747733078135,0.7903,2529.9,2529.8,14.3855]
[1747733078538,0.00593272,2530.2,2529.9,0.7903]
[1747733078736,0.79024,2530.1,2530.0,1.9825]
[1747733079235,0.00593272,2530.2,2530.0,3.958745]
[1747733079439,0.00593272,2530.2,2530.1,3.99804]
[1747733079648,0.66342857,2530.2,2530.1,3.99804]
[1747733079837,0.66342857,2530.2,2530.1,5.974205]
[1747733080651,1.31055159,2530.7,2530.1,5.974205]
[1747733080652,1.31055159,2530.7,2530.6,0.79009]
[1747733080843,1.31055159,2530.7,2530.6,3.99789]
[1747733081042,1.31055159,2530.7,2530.6,5.973665]
[1747733083447,0.79595272,2530.9,2530.8,0.79002]
[1747733083649,0.79595272,2530.9,2530.8,2.76564]
[1747733084140,0.79592272,2530.9,2530.8,2.76564]
[1747733085551,0.79592272,2530.9,2530.8,1.97562]
[1747733086451,0.79592272,2530.9,2530.8,3.25582]
[1747733087251,2.77154272,2530.9,2530.8,1.2802]
[1747733087445,8.95657272,2530.9,2530.5,9.2783]
[1747733087648,0.79009,2530.6,2530.5,9.2783]
[1747733088041,2.765945,2530.6,2530.5,9.2783]
[1747733089050,0.79009,2530.6,2530.5,9.2783]
[1747733089444,2.765945,2530.6,2530.5,7.908]
[1747733089644,0.79015,2530.4,2530.3,4.488]
[1747733090146,5.50616,2530.4,2530.3,3.2078]
[1747733090345,6.19506,2530.4,2530.3,3.2078]
[1747733093753,4.71601,2530.4,2530.3,3.2078]
[1747733093955,5.50616,2530.4,2530.3,3.2078]
[1747733095252,0.79015,2530.4,2530.3,5.18381]
[1747733095449,0.79013,2530.5,2530.4,0.79014]
[1747733095753,0.79013,2530.5,2530.4,1.3231]
[1747733095953,0.79013,2530.5,2530.4,3.299035]
[1747733096351,5.55223383,2530.8,2530.4,3.299035]
[1747733096557,0.79009,2530.6,2530.5,2.0567]
[1747733096848,1.57636383,2530.8,2530.5,2.0567]
[1747733097050,1.57636383,2530.8,2530.6,1.3231]
[1747733097356,0.79007,2530.7,2530.6,1.3231]
[1747733099453,2.765845,2530.7,2530.6,1.3231]
[1747733101254,2.05235,2530.8,2530.6,3.298875]
[1747733101455,0.79005,2530.7,2530.6,3.29884]
[1747733101657,0.00593272,2530.9,2530.8,0.79002]
[1747733101959,0.79002,2530.8,2530.7,9.1689]
[1747733102255,0.79005,2530.7,2530.5,1.2666]
[1747733102558,0.79009,2530.6,2530.5,1.2666]
[1747733102755,2.09709,2530.6,2530.5,1.2666]
[1747733103056,0.79015,2530.4,2530.3,3.2078]
[1747733103354,4.047,2530.6,2530.3,3.2078]
[1747733103657,0.79013,2530.5,2530.4,1.2589]
[1747733103856,2.74,2530.6,2530.5,0.79012]
[1747733104251,0.79009,2530.6,2530.5,5.378255]
[1747733104459,0.79009,2530.6,2530.5,7.431775]
[1747733104656,1.2569,2530.8,2530.5,7.431775]
[1747733104853,1.2569,2530.8,2530.5,5.45592]
[1747733105159,0.79009,2530.6,2530.5,1.9258]
[1747733105360,0.79009,2530.6,2530.5,1.2634]
[1747733105555,2.765945,2530.6,2530.5,1.2634]
[1747733106250,1.2569,2530.8,2530.5,3.239255]
[1747733106456,1.2569,2530.8,2530.5,2.05351]
[1747733106659,0.79009,2530.6,2530.5,1.2634]
[1747733107260,0.79009,2530.6,2530.5,3.239255]
[1747733107654,1.2569,2530.8,2530.6,0.79006]
[1747733107861,2.04694,2530.8,2530.7,1.3569]
[1747733108360,4.02264001,2530.8,2530.7,1.3569]
[1747733108556,0.79005,2530.7,2530.6,0.6552]
[1747733109056,2.13045,2530.7,2530.6,3.987875]
[1747733109457,0.79005,2530.7,2530.6,4.777965]
[1747733109859,0.79004,2530.8,2530.7,0.79005]
[1747733110053,0.79004,2530.8,2530.6,2.80217]
[1747733110252,0.79594272,2530.9,2530.7,2.14885]
[1747733110456,0.79594272,2530.9,2530.8,1.3588]
[1747733110961,4.03206272,2530.9,2530.8,1.3588]
[1747733113666,0.79005,2530.7,2530.6,0.6552]
[1747733114060,2.765825,2530.7,2530.6,0.6552]
[1747733114358,2.765825,2530.7,2530.6,1.9232]
[1747733115568,2.765825,2530.7,2530.6,1.268]
[1747733115867,0.79009,2530.6,2530.5,0.6708]
[1747733116068,2.765945,2530.6,2530.5,0.6708]
[1747733116868,0.79012,2530.5,2530.4,1.2934]
[1747733117071,2.13312,2530.5,2530.4,1.2934]
[1747733118167,0.79015,2530.4,2530.3,3.2078]
[1747733118558,0.79021,2530.2,2530.1,1.9835]
[1747733118761,0.79021,2530.2,2530.1,1.2934]
[1747733118972,0.79024,2530.1,2530.0,7.909]
[1747733119269,0.79027,2530.0,2529.9,4.4901]
[1747733119462,0.79027,2530.0,2529.9,3.2078]
[1747733119660,2.766595,2530.0,2529.9,3.2078]
[1747733119864,4.136595,2530.0,2529.9,3.2078]
[1747733120270,6.876595,2530.0,2529.9,3.2078]
[1747733122177,1.7762954,2530.1,2529.9,3.2078]
[1747733122374,3.7525804,2530.1,2530.0,1.3357]
[1747733122872,0.79027,2530.0,2529.9,3.2078]
[1747733123081,0.7903,2529.9,2529.8,1.42056477]
[1747733123270,1.4178,2529.9,2529.8,1.3357]
[1747733123571,1.4178,2529.9,2529.8,3.3121]
[1747733123768,2.6733,2529.9,2529.8,3.3121]
[1747733123971,0.79034,2529.8,2529.7,0.00593272]
[1747733124165,0.79043,2529.5,2529.4,0.34317179]
[1747733124575,2.767145,2529.5,2529.4,0.34317179]
[1747733125174,5.507145,2529.5,2529.4,0.34317179]
[1747733125373,5.507145,2529.5,2529.2,3.21373272]
[1747733125374,4.716715,2529.5,2529.2,3.21373272]
[1747733125573,0.79049,2529.3,2529.2,3.21373272]
[1747733125970,4.9057318,2529.3,2529.2,3.21373272]
[1747733126267,4.02486,2529.3,2529.2,3.21373272]
[1747733128280,2.89284814,2529.6,2529.2,5.19060272]
[1747733128577,2.89284814,2529.6,2529.5,3.99823]
[1747733128770,2.89284814,2529.6,2529.5,3.2078]
[1747733128970,0.79046,2529.4,2529.3,1.3777]
[1747733129172,0.79049,2529.3,2529.2,0.00593272]
[1747733129573,4.05286,2529.3,2529.2,0.00593272]
[1747733129979,0.79047,2529.4,2529.2,0.00593272]
[1747733130170,0.79044,2529.5,2529.3,0.79049]
[1747733130374,0.79044,2529.5,2529.4,1.3777]
[1747733130881,2.767155,2529.5,2529.4,1.3777]
[1747733132781,0.79049,2529.3,2529.2,0.00593272]
[1747733133179,0.79049,2529.3,2529.2,1.98280272]
[1747733133381,0.79049,2529.3,2529.2,0.00593272]
[1747733136186,2.76736,2529.3,2529.2,0.00593272]
[1747733136985,4.70446,2529.3,2529.2,0.00593272]
[1747733138885,4.70446,2529.3,2528.7,3.2078]
[1747733138886,0.79065,2528.8,2528.7,3.2078]
[1747733139085,0.79065,2528.8,2528.7,4.5505]
[1747733139292,0.79065,2528.8,2528.7,6.52776]
[1747733140586,0.79065,2528.8,2528.7,4.5505]
[1747733142690,0.79065,2528.8,2528.7,4.63536477]
[1747733143294,0.79059,2529.0,2528.9,0.7906]
[1747733143583,5.18396,2529.4,2529.0,0.79056]
[1747733143791,0.79052,2529.2,2529.1,2.6123]
[1747733144195,2.76747,2529.2,2529.1,2.6123]
[1747733145283,4.44260067,2529.5,2529.1,4.58925]
[1747733145489,0.79052,2529.2,2529.1,1.2652]
[1747733145994,0.79051,2529.3,2529.1,3.24215]
[1747733146290,0.79052,2529.2,2529.1,2.05572]
[1747733146490,2.56250067,2529.5,2529.2,0.79052]
[1747733146691,2.56250067,2529.5,2529.1,2.05573]
[1747733147590,0.79046,2529.4,2529.3,0.79049]
[1747733147890,2.56250067,2529.5,2529.4,0.79046]
[1747733148189,2.56250067,2529.5,2529.4,6.73826]
[1747733148389,2.56250067,2529.5,2529.4,8.714975]
[1747733148590,2.56250067,2529.5,2529.4,16.643975]
[1747733148790,2.56250067,2529.5,2529.4,16.72883977]
[1747733148990,3.35293067,2529.5,2529.4,16.72883977]
[1747733149293,3.35293067,2529.5,2529.4,15.93837977]
[1747733149592,2.56250067,2529.5,2529.4,8.79983977]
[1747733149786,0.98613684,2529.5,2529.4,8.714975]
[1747733150092,1.77656684,2529.5,2529.4,8.714975]
[1747733150281,1.77656684,2529.5,2529.4,7.924515]
[1747733150992,1.77656684,2529.5,2529.4,2.74]
[1747733151196,0.79049,2529.3,2529.2,8.01386477]
[1747733151386,0.79049,2529.3,2529.2,9.99073477]
[1747733152090,0.79049,2529.3,2529.2,10.78125477]
[1747733152300,0.00593272,2529.6,2529.3,0.79049]
[1747733152591,0.79046,2529.4,2529.3,0.79049]
[1747733152989,0.79046,2529.4,2529.3,1.97679]
[1747733153189,0.79046,2529.4,2529.3,4.71679]
[1747733159100,0.00593272,2529.6,2529.5,0.79043]
[1747733159402,0.79633272,2529.6,2529.5,3.2078]
[1747733159605,0.79633272,2529.6,2529.5,5.184435]
[1747733160003,0.79633272,2529.6,2529.5,3.2078]
[1747733160204,0.79633272,2529.6,2529.5,5.9478]
[1747733160406,0.79633272,2529.6,2529.5,7.924435]
[1747733160608,0.79633272,2529.6,2529.5,5.9478]
[1747733160913,2.77296772,2529.6,2529.5,5.9478]
[1747733161107,0.79049,2529.3,2529.2,8.01386477]
[1747733161306,0.79049,2529.3,2529.2,8.80438477]
[1747733161513,0.79049,2529.3,2529.2,9.97673477]
[1747733161708,0.79049,2529.3,2529.2,10.76725477]
[1747733161908,0.79049,2529.3,2529.2,10.68239]
[1747733162106,0.79049,2529.4,2529.2,10.68239]
[1747733162610,0.79049,2529.3,2529.2,10.68239]
[1747733162812,0.79048,2529.4,2529.3,0.79049]
[1747733163010,1.98200272,2529.6,2529.2,8.79036477]
[1747733163212,0.79049,2529.3,2529.2,8.79036477]
[1747733163513,0.00593272,2529.6,2529.3,0.79046]
[1747733163699,0.79046,2529.4,2529.2,8.79035477]
[1747733163907,0.79046,2529.4,2529.3,1.3482]
[1747733164107,0.79046,2529.4,2529.3,4.0882]
[1747733164307,0.79046,2529.4,2529.3,6.06499]
[1747733165512,0.99206956,2529.6,2529.3,6.06499]
[1747733165721,0.99206956,2529.6,2529.5,3.99823]
[1747733165921,1.78246956,2529.6,2529.5,5.974865]
[1747733166116,0.99206956,2529.6,2529.5,8.714865]
[1747733167011,1.31055159,2529.9,2529.8,0.79034]
[1747733167214,1.31055159,2529.9,2529.8,16.62954]
[1747733168107,1.31055159,2529.9,2529.8,16.98011134]
[1747733168510,0.00593272,2530.1,2530.0,0.79027]
[1747733168811,0.00593272,2530.1,2529.8,21.98011134]
[1747733168812,0.79011,2530.6,2530.5,0.7901]
[1747733169012,0.79011,2530.6,2530.5,13.098655]
[1747733169217,0.79011,2530.6,2530.5,15.838655]
[1747733169720,2.765965,2530.6,2530.5,5.9478]
[1747733170013,7.765965,2530.6,2530.5,2.74]
[1747733170318,0.79015,2530.4,2530.3,0.00593272]
[1747733170717,2.76616,2530.4,2530.3,0.00593272]
[1747733170917,4.02996,2530.4,2530.3,0.00593272]
[1747733173116,9.02996,2530.4,2530.3,0.00593272]
[1747733173320,0.79034,2529.8,2529.7,1.58169182]
[1747733173620,0.79034,2529.8,2529.7,0.26199182]
[1747733173821,2.76682,2529.8,2529.7,1.58169182]
[1747733174215,3.35058,2530.0,2529.7,2.37206182]
[1747733174413,0.7903,2529.9,2529.8,3.99811]
[1747733174725,0.7903,2529.9,2529.8,3.2078]
[1747733174917,0.7903,2529.9,2529.8,5.1842]
[1747733175218,0.7903,2529.9,2529.8,9.264]
[1747733175418,0.6596,2530.0,2529.8,9.264]
[1747733175719,0.7903,2529.9,2529.8,7.2876]
[1747733175923,2.0594,2529.9,2529.8,2.74]
[1747733176120,0.79037,2529.7,2529.6,9.9285]
[1747733176509,0.79037,2529.7,2529.6,11.90505999]
[1747733176916,0.79036,2529.8,2529.6,12.69545999]
[1747733177114,0.79036,2529.8,2529.7,1.3774]
[1747733177517,0.79036,2529.8,2529.7,2.16777]
[1747733177914,2.76684,2529.8,2529.7,1.3774]
[1747733178420,0.79036,2529.8,2529.7,1.3774]
[1747733178923,0.79037,2529.7,2529.6,11.3287]
[1747733179123,2.16437,2529.7,2529.6,11.3287]
[1747733179316,2.16437,2529.7,2529.6,10.56525999]
[1747733181320,0.7904,2529.6,2529.5,6.03859749]
[1747733181518,4.754735,2529.6,2529.5,2.83079749]
[1747733181722,7.7781,2529.6,2529.5,2.83079749]
[1747733182024,0.79059,2529.0,2528.9,1.2588]
[1747733182230,0.79057,2529.1,2528.9,2.0494]
[1747733182827,2.767635,2529.1,2528.9,2.0494]
[1747733183221,0.79059,2529.0,2528.9,3.9988]
[1747733183417,2.767635,2529.1,2528.9,4.7894]
[1747733183620,0.79057,2529.1,2528.9,4.7894]
[1747733184035,2.05503,2529.2,2529.0,0.79057]
[1747733184226,2.05503,2529.2,2529.1,1.2979]
[1747733184429,4.03202,2529.2,2529.1,1.2979]
[1747733185932,0.79055,2529.1,2529.0,2.74]
[1747733187832,0.79055,2529.1,2529.0,4.717025]
[1747733188225,0.79055,2529.1,2529.0,2.74]
[1747733188625,0.79055,2529.1,2529.0,4.717025]
[1747733188830,0.79055,2529.1,2529.0,2.74]
[1747733189525,0.79055,2529.1,2529.0,5.9478]
[1747733189926,0.79055,2529.1,2529.0,6.73839]
[1747733190127,0.79055,2529.1,2529.0,7.924825]
[1747733190840,0.00593272,2529.3,2529.2,0.79052]
[1747733191137,0.00593272,2529.3,2529.2,8.70452]
[1747733191340,0.00593272,2529.3,2529.2,10.68139]
[1747733191529,0.00593272,2529.3,2529.2,17.00049]
[1747733192143,1.57636383,2529.7,2529.6,0.7904]
[1747733192457,1.57636383,2529.7,2529.6,11.9122]
[1747733192627,1.57636383,2529.7,2529.6,13.88875999]
[1747733193033,0.79034,2529.8,2529.7,0.79034]
[1747733193236,0.00593272,2530.0,2529.8,0.79032]
[1747733193436,0.79620272,2530.0,2529.9,5.3654]
[1747733193626,0.79620272,2530.0,2529.9,4.5751]
[1747733193833,0.79620272,2530.0,2529.9,6.55142499]
[1747733194235,0.79620272,2530.0,2529.9,10.08172499]
[1747733194436,0.00593272,2530.0,2529.9,10.08172499]
[1747733195141,0.79620272,2530.0,2529.9,9.29142499]
[1747733196431,0.79620272,2530.0,2529.9,10.08172499]
[1747733198938,0.79620272,2530.0,2529.9,9.29142499]
[1747733199143,0.79620272,2530.0,2529.9,7.3151]
[1747733199440,2.77252772,2530.0,2529.9,2.74]
[1747733200135,2.77252772,2530.0,2529.9,4.0657]
[1747733204145,2.77252772,2530.0,2529.9,1.3257]
[1747733206146,2.77252772,2530.0,2529.9,4.0657]
[1747733207034,2.77252772,2530.0,2529.9,4.856]
[1747733207239,0.00593272,2530.0,2529.9,6.83232499]
[1747733207537,0.00593272,2530.0,2529.9,7.49362499]
[1747733208448,0.79620272,2530.0,2529.9,7.49362499]
[1747733209350,0.00593272,2530.0,2529.9,7.49362499]
[1747733209941,0.79620272,2530.0,2529.9,7.49362499]
[1747733210849,0.79620272,2530.0,2529.9,7.57848976]
[1747733211249,0.00593272,2530.0,2529.9,7.57848976]
[1747733211949,0.00593272,2530.0,2529.9,7.49362499]
[1747733212952,0.00593272,2530.0,2529.9,7.57848976]
[1747733213154,0.79014,2530.5,2530.4,0.79015]
[1747733213351,0.79021,2530.2,2530.1,3.2078]
[1747733214057,2.766375,2530.2,2530.1,3.2078]
[1747733218051,2.766375,2530.2,2530.1,4.5037]
[1747733218350,1.976165,2530.2,2530.1,5.29394]
[1747733218555,2.766375,2530.2,2530.1,4.5037]
[1747733221453,2.766375,2530.2,2530.1,3.2078]
[1747733222052,0.79024,2530.1,2530.0,2.74]
[1747733222257,0.79027,2530.0,2529.9,0.09079749]
[1747733222455,1.44747,2530.0,2529.9,0.09079749]
[1747733222760,4.767795,2530.0,2529.9,0.09079749]
[1747733223663,4.767795,2530.0,2529.9,1.40509749]
[1747733223859,4.767795,2530.0,2529.9,0.09079749]
[1747733225360,4.767795,2530.0,2529.9,2.83079749]
[1747733227159,4.767795,2530.0,2529.9,0.09079749]
[1747733227961,9.767795,2530.0,2529.9,0.09079749]
[1747733228363,11.34415883,2530.0,2529.9,0.09079749]
[1747733229466,9.767795,2530.0,2529.9,0.09079749]
[1747733230378,4.767795,2530.0,2529.9,0.09079749]
[1747733231577,2.766595,2530.0,2529.9,0.09079749]
[1747733232174,4.031895,2530.0,2529.9,0.09079749]
[1747733234578,2.766595,2530.0,2529.9,0.09079749]
[1747733234779,2.766595,2530.0,2529.9,0.72559749]
[1747733235180,0.79027,2530.0,2529.9,6.74682248]
[1747733237379,1.77939864,2530.0,2529.9,6.74682248]
[1747733239181,1.77939864,2530.0,2529.9,6.66195771]
[1747733239381,3.75572364,2530.0,2529.9,2.74593272]
[1747733239684,5.14242364,2530.0,2529.9,2.74593272]
[1747733239874,5.79962364,2530.0,2529.9,2.74593272]
[1747733240075,3.95163,2529.9,2529.4,3.55794539]
[1747733240275,10.00935364,2530.0,2529.1,0.55729805]
[1747733240276,0.79052,2529.2,2529.1,0.55729805]
[1747733240484,0.79055,2529.1,2529.0,3.92433994]
[1747733240778,0.79055,2529.1,2528.9,1.2737]
[1747733240779,0.79059,2529.0,2528.9,1.2737]
[1747733240978,2.767695,2529.0,2528.9,1.2737]
[1747733241178,2.767695,2529.0,2528.9,4.0137]
[1747733241576,4.129695,2529.0,2528.9,4.0137]
[1747733243575,2.767695,2529.0,2528.9,4.0137]
[1747733244680,2.767695,2529.0,2528.9,2.74]
[1747733245281,0.79065,2528.8,2528.7,1.28293272]
[1747733245679,0.79065,2528.8,2528.7,3.26019272]
[1747733246585,2.76791,2528.8,2528.7,0.00593272]
[1747733246883,5.97571,2528.8,2528.7,0.00593272]
[1747733247484,8.54231,2528.8,2528.7,0.00593272]
[1747733247987,0.79084,2528.2,2528.1,0.26359271]
[1747733248288,4.67010056,2528.2,2528.1,0.26359271]
[1747733248489,6.64783056,2528.2,2528.1,0.26359271]
[1747733248977,7.91573056,2528.2,2528.1,0.26359271]